[Event "FIDE World Rapid Chess Championship 2021"]
[White "Theodorou, Nikolas"]
[Black "Tang, Andrew"]
[WhiteFideId "4262875"]
[BlackFideId "2059630"]
[WhiteElo "2559"]
[BlackElo "2427"]
[Result "1-0"]
[Round "03"]
[TimeControl "900+10"]
[Date "2021.12.26"]
[WhiteClock "0:00:30"]
[BlackClock "0:00:17"]

1. d4 {[%clk 0:15:00]}  d5 {[%clk 0:15:00]} 2. c4 {[%clk 0:15:00]}  e6 {[%clk 0:15:00]} 3. Nf3 {[%clk 0:15:00]}  Nf6 {[%clk 0:15:00]} 4. Nc3 {[%clk 0:15:00]}  Be7 {[%clk 0:15:33]} 5. Bf4 {[%clk 0:13:04]}  O-O {[%clk 0:15:33]} 6. e3 {[%clk 0:13:04]}  Nbd7 {[%clk 0:15:33]} 7. c5 {[%clk 0:13:04]}  Ne4 {[%clk 0:15:33]} 8. Bd3 {[%clk 0:13:20]}  f5 {[%clk 0:15:34]} 9. h3 {[%clk 0:13:20]}  c6 {[%clk 0:15:27]} 10. O-O {[%clk 0:12:21]}  Bf6 {[%clk 0:15:17]} 11. Bh2 {[%clk 0:12:25]}  b6 {[%clk 0:13:56]} 12. cxb6 {[%clk 0:11:32]}  axb6 {[%clk 0:13:56]} 13. a4 {[%clk 0:11:32]}  Ba6 {[%clk 0:12:55]} 14. Rc1 {[%clk 0:11:27]}  Nxc3 {[%clk 0:09:57]} 15. Rxc3 {[%clk 0:10:34]}  c5 {[%clk 0:09:57]} 16. b3 {[%clk 0:10:40]}  Qe7 {[%clk 0:04:25]} 17. Qe2 {[%clk 0:09:20]}  Bxd3 {[%clk 0:04:16]} 18. Qxd3 {[%clk 0:08:42]}  g5 {[%clk 0:02:44]} 19. Qb5 {[%clk 0:08:49]}  g4 {[%clk 0:02:22]} 20. hxg4 {[%clk 0:06:44]}  fxg4 {[%clk 0:02:22]} 21. Ne5 {[%clk 0:06:44]}  Bxe5 {[%clk 0:02:22]} 22. dxe5 {[%clk 0:05:49]}  Rfc8 {[%clk 0:01:39]} 23. Qe2 {[%clk 0:05:53]}  Qg7 {[%clk 0:01:27]} 24. e4 {[%clk 0:04:23]}  d4 {[%clk 0:01:16]} 25. Rg3 {[%clk 0:04:23]}  h5 {[%clk 0:01:16]} 26. f4 {[%clk 0:01:56]}  c4 {[%clk 0:01:28]} 27. bxc4 {[%clk 0:00:58]}  Rxa4 {[%clk 0:01:28]} 28. Rd3 {[%clk 0:00:58]}  Raxc4 {[%clk 0:01:28]} 29. Bg3 {[%clk 0:00:58]}  Nc5 {[%clk 0:01:28]} 30. Rdd1 {[%clk 0:00:40]}  d3 {[%clk 0:00:41]} 31. Qa2 {[%clk 0:00:40]}  Qd7 {[%clk 0:00:17]} 32. Qxc4 {[%clk 0:00:30]}  b5 {[%clk 0:00:17]} 33. Qb4 {[%clk 0:00:30]}  Na6 {[%clk 0:00:17]} 34. Qd6 {[%clk 0:00:30]} 1-0


[Site "http://www.Chess.com"]

[Event "FIDE World Rapid Chess Championship 2021"]
[White "Gukesh, D"]
[Black "Ghaem Maghami, Ehsan"]
[WhiteFideId "46616543"]
[BlackFideId "12500739"]
[WhiteElo "2050"]
[BlackElo "2553"]
[Result "0-1"]
[Round "03"]
[TimeControl "900+10"]
[Date "2021.12.26"]
[WhiteClock "0:02:25"]
[BlackClock "0:01:41"]

1. Nf3 {[%clk 0:15:24]}  Nf6 {[%clk 0:15:17]} 2. g3 {[%clk 0:15:24]}  g6 {[%clk 0:15:17]} 3. Bg2 {[%clk 0:15:48]}  Bg7 {[%clk 0:15:32]} 4. O-O {[%clk 0:15:48]}  d5 {[%clk 0:15:32]} 5. d4 {[%clk 0:15:48]}  O-O {[%clk 0:15:32]} 6. c4 {[%clk 0:15:48]}  c6 {[%clk 0:15:32]} 7. Qb3 {[%clk 0:15:48]}  a5 {[%clk 0:15:32]} 8. cxd5 {[%clk 0:15:48]}  a4 {[%clk 0:15:32]} 9. Qd1 {[%clk 0:15:48]}  cxd5 {[%clk 0:15:32]} 10. Nc3 {[%clk 0:15:48]}  Qa5 {[%clk 0:15:32]} 11. Bd2 {[%clk 0:16:01]}  Nc6 {[%clk 0:15:16]} 12. Ne5 {[%clk 0:15:08]}  Nxd4 {[%clk 0:14:20]} 13. e3 {[%clk 0:13:24]}  Nb5 {[%clk 0:10:58]} 14. Nxd5 {[%clk 0:12:02]}  Qd8 {[%clk 0:10:58]} 15. Nf4 {[%clk 0:11:42]}  Nd6 {[%clk 0:10:07]} 16. Bb4 {[%clk 0:11:23]}  Qb6 {[%clk 0:09:19]} 17. a3 {[%clk 0:09:48]}  Qb5 {[%clk 0:03:58]} 18. Bxd6 {[%clk 0:08:51]}  exd6 {[%clk 0:03:14]} 19. Ned3 {[%clk 0:06:07]}  Bg4 {[%clk 0:03:14]} 20. Bf3 {[%clk 0:06:07]}  Bxf3 {[%clk 0:03:14]} 21. Qxf3 {[%clk 0:06:07]}  g5 {[%clk 0:03:14]} 22. Rad1 {[%clk 0:06:07]}  gxf4 {[%clk 0:03:14]} 23. Nxf4 {[%clk 0:06:07]}  Qxb2 {[%clk 0:03:14]} 24. Rxd6 {[%clk 0:06:07]}  Qxa3 {[%clk 0:03:14]} 25. Rfd1 {[%clk 0:05:58]}  Qc3 {[%clk 0:02:19]} 26. g4 {[%clk 0:04:59]}  a3 {[%clk 0:02:19]} 27. g5 {[%clk 0:04:59]}  Ne8 {[%clk 0:02:19]} 28. R6d3 {[%clk 0:04:49]}  Qc6 {[%clk 0:01:32]} 29. Nd5 {[%clk 0:02:18]}  Kh8 {[%clk 0:01:32]} 30. e4 {[%clk 0:02:25]}  a2 {[%clk 0:01:41]} 31. Ra3 {[%clk 0:02:25]}  Rxa3 {[%clk 0:01:41]} 32. Qxa3 {[%clk 0:02:25]}  Qa6 {[%clk 0:01:41]} 0-1


[Site "http://www.Chess.com"]

[Event "FIDE World Rapid Chess Championship 2021"]
[White "Kozak, Adam"]
[Black "Teclaf, Pawel"]
[WhiteFideId "753246"]
[BlackFideId "1185934"]
[WhiteElo "2552"]
[BlackElo "2345"]
[Result "0-1"]
[Round "03"]
[TimeControl "900+10"]
[Date "2021.12.26"]
[WhiteClock "0:00:11"]
[BlackClock "0:00:12"]

1. d4 {[%clk 0:15:17]}  d5 {[%clk 0:15:15]} 2. c4 {[%clk 0:15:17]}  c6 {[%clk 0:15:15]} 3. Nf3 {[%clk 0:15:17]}  Nf6 {[%clk 0:15:15]} 4. Nc3 {[%clk 0:15:41]}  dxc4 {[%clk 0:15:38]} 5. a4 {[%clk 0:15:41]}  Bf5 {[%clk 0:15:38]} 6. Ne5 {[%clk 0:15:41]}  e6 {[%clk 0:15:38]} 7. f3 {[%clk 0:15:41]}  Bb4 {[%clk 0:15:38]} 8. Nxc4 {[%clk 0:15:41]}  O-O {[%clk 0:15:38]} 9. Kf2 {[%clk 0:14:42]}  h6 {[%clk 0:15:22]} 10. e4 {[%clk 0:14:42]}  Bh7 {[%clk 0:15:22]} 11. Be3 {[%clk 0:14:40]}  a5 {[%clk 0:15:10]} 12. Be2 {[%clk 0:13:48]}  Na6 {[%clk 0:14:35]} 13. Qb3 {[%clk 0:13:48]}  Nd7 {[%clk 0:14:14]} 14. Rhd1 {[%clk 0:11:38]}  Kh8 {[%clk 0:13:02]} 15. Kg1 {[%clk 0:11:38]}  f5 {[%clk 0:13:02]} 16. e5 {[%clk 0:11:37]}  f4 {[%clk 0:11:40]} 17. Bf2 {[%clk 0:11:06]}  Qe7 {[%clk 0:11:40]} 18. Bd3 {[%clk 0:11:12]}  Bxd3 {[%clk 0:09:50]} 19. Rxd3 {[%clk 0:10:41]}  Nc7 {[%clk 0:09:50]} 20. Na2 {[%clk 0:10:49]}  Nd5 {[%clk 0:08:52]} 21. Nxb4 {[%clk 0:10:49]}  axb4 {[%clk 0:08:21]} 22. Rdd1 {[%clk 0:09:49]}  N7b6 {[%clk 0:06:00]} 23. Nd6 {[%clk 0:09:13]}  Nc8 {[%clk 0:03:42]} 24. Ne4 {[%clk 0:08:25]}  b6 {[%clk 0:01:57]} 25. Rdc1 {[%clk 0:08:24]}  Qd7 {[%clk 0:01:57]} 26. Qc4 {[%clk 0:08:17]}  Nce7 {[%clk 0:00:55]} 27. Nd6 {[%clk 0:08:17]}  Rxa4 {[%clk 0:01:01]} 28. Rxa4 {[%clk 0:07:34]}  b5 {[%clk 0:01:01]} 29. Qb3 {[%clk 0:07:34]}  bxa4 {[%clk 0:01:01]} 30. Qxa4 {[%clk 0:07:34]}  Qc7 {[%clk 0:01:01]} 31. Qa6 {[%clk 0:07:16]}  Rb8 {[%clk 0:00:37]} 32. Rc5 {[%clk 0:06:09]}  Rb6 {[%clk 0:00:28]} 33. Qa4 {[%clk 0:06:09]}  Rb8 {[%clk 0:00:12]} 34. Ra5 {[%clk 0:05:29]}  Kg8 {[%clk 0:00:12]} 35. Ra7 {[%clk 0:05:29]}  Qb6 {[%clk 0:00:12]} 36. Ra6 {[%clk 0:05:19]}  Qc7 {[%clk 0:00:20]} 37. h3 {[%clk 0:05:19]}  b3 {[%clk 0:00:20]} 38. Ra8 {[%clk 0:05:19]}  Rxa8 {[%clk 0:00:10]} 39. Qxa8+ {[%clk 0:04:01]}  Kh7 {[%clk 0:00:10]} 40. Qf8 {[%clk 0:04:01]}  Qa5 {[%clk 0:00:10]} 41. Kh2 {[%clk 0:03:27]}  Qd2 {[%clk 0:00:00]} 42. Ne4 {[%clk 0:03:27]}  Qxb2 {[%clk 0:00:00]} 43. Nf6+ {[%clk 0:02:33]}  gxf6 {[%clk 0:00:09]} 44. Qf7+ {[%clk 0:02:33]}  Kh8 {[%clk 0:00:09]} 45. exf6 {[%clk 0:02:33]}  Nxf6 {[%clk 0:00:09]} 46. Qxf6+ {[%clk 0:02:33]}  Kg8 {[%clk 0:00:04]} 47. Qxe6+ {[%clk 0:02:16]}  Kf8 {[%clk 0:00:04]} 48. Bh4 {[%clk 0:02:16]}  Ng8 {[%clk 0:00:04]} 49. Qxc6 {[%clk 0:02:16]}  Qc2 {[%clk 0:00:04]} 50. Qd6+ {[%clk 0:01:46]}  Kg7 {[%clk 0:00:03]} 51. Qe5+ {[%clk 0:01:46]}  Kh7 {[%clk 0:00:04]} 52. Qxf4 {[%clk 0:01:46]}  b2 {[%clk 0:00:04]} 53. Qf7+ {[%clk 0:01:46]}  Kh8 {[%clk 0:00:04]} 54. Bf6+ {[%clk 0:01:46]}  Nxf6 {[%clk 0:00:04]} 55. Qxf6+ {[%clk 0:01:46]}  Kg8 {[%clk 0:00:04]} 56. Qe6+ {[%clk 0:01:46]}  Kf8 {[%clk 0:00:04]} 57. Qf6+ {[%clk 0:01:46]}  Ke8 {[%clk 0:00:04]} 58. Qe6+ {[%clk 0:01:46]}  Kd8 {[%clk 0:00:04]} 59. Qd6+ {[%clk 0:01:46]}  Kc8 {[%clk 0:00:45]} 60. Qa6+ {[%clk 0:01:03]}  Kc7 {[%clk 0:00:45]} 61. Qa5+ {[%clk 0:00:55]}  Kc6 {[%clk 0:00:19]} 62. d5+ {[%clk 0:00:55]}  Kd6 {[%clk 0:00:19]} 63. Qd8+ {[%clk 0:00:55]}  Ke5 {[%clk 0:00:19]} 64. f4+ {[%clk 0:00:55]}  Kxf4 {[%clk 0:00:12]} 65. Qd6+ {[%clk 0:00:11]} 0-1


[Site "http://www.Chess.com"]

[Event "FIDE World Rapid Chess Championship 2021"]
[White "Parligras, Mircea-Emilian"]
[Black "Dudin, Gleb"]
[WhiteFideId "1204297"]
[BlackFideId "34184934"]
[WhiteElo "2550"]
[BlackElo "2247"]
[Result "1/2-1/2"]
[Round "03"]
[TimeControl "900+10"]
[Date "2021.12.26"]
[WhiteClock "0:02:31"]
[BlackClock "0:00:40"]

1. d4 {[%clk 0:15:24]}  g6 {[%clk 0:15:17]} 2. Nf3 {[%clk 0:15:24]}  Bg7 {[%clk 0:15:17]} 3. Bf4 {[%clk 0:15:24]}  d6 {[%clk 0:15:17]} 4. Nc3 {[%clk 0:15:24]}  a6 {[%clk 0:15:35]} 5. a4 {[%clk 0:15:28]}  Nd7 {[%clk 0:15:35]} 6. e4 {[%clk 0:15:28]}  c5 {[%clk 0:15:35]} 7. Be3 {[%clk 0:15:28]}  cxd4 {[%clk 0:15:35]} 8. Bxd4 {[%clk 0:15:28]}  Ngf6 {[%clk 0:15:35]} 9. Bc4 {[%clk 0:15:28]}  O-O {[%clk 0:15:29]} 10. O-O {[%clk 0:14:44]}  b6 {[%clk 0:15:29]} 11. e5 {[%clk 0:14:34]}  dxe5 {[%clk 0:15:04]} 12. Nxe5 {[%clk 0:14:02]}  Qc7 {[%clk 0:12:53]} 13. Nxd7 {[%clk 0:11:48]}  Bxd7 {[%clk 0:10:36]} 14. Be2 {[%clk 0:11:48]}  Bc6 {[%clk 0:10:42]} 15. Bxf6 {[%clk 0:08:30]}  Bxf6 {[%clk 0:09:29]} 16. Bf3 {[%clk 0:02:49]}  Bxc3 {[%clk 0:09:31]} 17. bxc3 {[%clk 0:02:49]}  Rfd8 {[%clk 0:09:35]} 18. Qe2 {[%clk 0:01:12]}  Bxf3 {[%clk 0:09:35]} 19. Qxf3 {[%clk 0:01:12]}  Rac8 {[%clk 0:09:35]} 20. Ra3 {[%clk 0:01:12]}  Rd6 {[%clk 0:09:42]} 21. Rd1 {[%clk 0:01:04]}  Rc6 {[%clk 0:08:21]} 22. Rd3 {[%clk 0:00:28]}  Rf6 {[%clk 0:08:21]} 23. Qe2 {[%clk 0:00:28]}  a5 {[%clk 0:06:44]} 24. g3 {[%clk 0:00:30]}  Kg7 {[%clk 0:04:44]} 25. Re3 {[%clk 0:00:32]}  e6 {[%clk 0:04:44]} 26. Rb3 {[%clk 0:00:32]}  Rf5 {[%clk 0:04:44]} 27. Qa6 {[%clk 0:00:43]}  Rb8 {[%clk 0:04:20]} 28. Qe2 {[%clk 0:00:43]}  Rd5 {[%clk 0:04:20]} 29. Rd3 {[%clk 0:00:20]}  Qc4 {[%clk 0:03:49]} 30. Qe3 {[%clk 0:00:20]}  Rf5 {[%clk 0:03:49]} 31. Qd4+ {[%clk 0:00:23]}  Qxd4 {[%clk 0:03:49]} 32. cxd4 {[%clk 0:00:23]}  Rc8 {[%clk 0:00:43]} 33. c3 {[%clk 0:00:19]}  Rc6 {[%clk 0:00:43]} 34. Kg2 {[%clk 0:00:19]}  Rd5 {[%clk 0:00:43]} 35. Re3 {[%clk 0:00:19]}  f6 {[%clk 0:00:43]} 36. f4 {[%clk 0:00:19]}  Rdd6 {[%clk 0:00:43]} 37. Kf3 {[%clk 0:00:19]}  Rc4 {[%clk 0:00:43]} 38. Ra3 {[%clk 0:00:19]}  Kf7 {[%clk 0:00:43]} 39. Ke2 {[%clk 0:00:19]}  h5 {[%clk 0:00:43]} 40. Kd3 {[%clk 0:00:19]}  Rdc6 {[%clk 0:00:43]} 41. Re1 {[%clk 0:00:19]}  Rc7 {[%clk 0:00:43]} 42. Rb1 {[%clk 0:01:21]}  R4c6 {[%clk 0:01:14]} 43. Re1 {[%clk 0:02:31]}  Rd6 {[%clk 0:00:40]} 44. Rb3 {[%clk 0:02:31]}  Ke7 {[%clk 0:00:40]} 45. h3 {[%clk 0:02:31]}  Kd7 {[%clk 0:00:40]} 46. Reb1 {[%clk 0:02:31]}  Rcc6 {[%clk 0:00:40]} 47. g4 {[%clk 0:02:31]}  e5 {[%clk 0:00:40]} 48. fxe5 {[%clk 0:02:31]}  fxe5 {[%clk 0:00:40]} 49. gxh5 {[%clk 0:02:31]}  gxh5 {[%clk 0:00:40]} 50. Rb5 {[%clk 0:02:31]}  exd4 {[%clk 0:00:40]} 51. cxd4 {[%clk 0:02:31]}  h4 {[%clk 0:00:40]} 52. Rh5 {[%clk 0:02:31]}  Rh6 {[%clk 0:00:40]} 53. Rbb5 {[%clk 0:02:31]}  Rcg6 {[%clk 0:00:40]} 54. Rbd5+ {[%clk 0:02:31]}  Kc6 {[%clk 0:00:40]} 55. Rxh6 {[%clk 0:02:31]}  Rxh6 {[%clk 0:00:40]} 56. Rg5 {[%clk 0:02:31]}  Rf6 {[%clk 0:00:40]} 57. Kc4 {[%clk 0:02:31]}  Rf3 {[%clk 0:00:40]} 58. Rg6+ {[%clk 0:02:31]}  Kc7 {[%clk 0:00:40]} 59. Rg7+ {[%clk 0:02:31]}  Kd8 {[%clk 0:00:40]} 60. Kb5 {[%clk 0:02:31]}  Rxh3 {[%clk 0:00:40]} 61. Kxb6 {[%clk 0:02:31]}  Rd3 {[%clk 0:00:40]} 62. Rg4 {[%clk 0:02:31]}  h3 {[%clk 0:00:40]} 63. Rh4 {[%clk 0:02:31]}  Ke7 {[%clk 0:00:40]} 64. Kxa5 {[%clk 0:02:31]}  Kf6 {[%clk 0:00:40]} 65. Kb5 {[%clk 0:02:31]}  Kg5 {[%clk 0:00:40]} 66. Rh8 {[%clk 0:02:31]}  Kg4 {[%clk 0:00:40]} 67. Kc5 {[%clk 0:02:31]}  Ra3 {[%clk 0:00:40]} 68. Kb4 {[%clk 0:02:31]}  Rd3 {[%clk 0:00:40]} 69. Kc4 {[%clk 0:02:31]}  Rf3 {[%clk 0:00:40]} 70. d5 {[%clk 0:02:31]}  Rf4+ {[%clk 0:00:40]} 71. Kb5 {[%clk 0:02:31]}  Rf5 {[%clk 0:00:40]} 72. Kc6 {[%clk 0:02:31]}  Rh5 {[%clk 0:00:40]} 73. Rg8+ {[%clk 0:02:31]}  Kf5 {[%clk 0:00:40]} 74. Rg1 {[%clk 0:02:31]}  h2 {[%clk 0:00:40]} 75. Rh1 {[%clk 0:02:31]}  Ke5 {[%clk 0:00:40]} 76. d6 {[%clk 0:02:31]}  Rh6 {[%clk 0:00:40]} 77. Re1+ {[%clk 0:02:31]}  Kf5 {[%clk 0:00:40]} 78. Rh1 {[%clk 0:02:31]}  Ke5 {[%clk 0:00:40]} 79. Kc7 {[%clk 0:02:31]}  Rxd6 {[%clk 0:00:40]} 80. Re1+ {[%clk 0:02:31]}  Kd5 {[%clk 0:00:40]} 81. Rd1+ {[%clk 0:02:31]}  Ke5 {[%clk 0:00:40]} 82. Re1+ {[%clk 0:02:31]}  Kd5 {[%clk 0:00:40]} 83. Rd1+ {[%clk 0:02:31]}  Ke5 {[%clk 0:00:40]} 84. Re1+ {[%clk 0:02:31]}  Kd5 {[%clk 0:00:40]} 85. Rd1+ {[%clk 0:02:31]}  Ke5 {[%clk 0:00:40]} 86. Rh1 {[%clk 0:02:31]}  Rh6 {[%clk 0:00:40]} 1/2-1/2


[Site "http://www.Chess.com"]

[Event "FIDE World Rapid Chess Championship 2021"]
[White "Yunusov, Mukhammad"]
[Black "Shoker, Samy"]
[WhiteFideId "14700930"]
[BlackFideId "627143"]
[WhiteElo "1832"]
[BlackElo "2550"]
[Result "1/2-1/2"]
[Round "03"]
[TimeControl "900+10"]
[Date "2021.12.26"]
[WhiteClock "0:12:08"]
[BlackClock "0:15:10"]

1. e4 {[%clk 0:14:59]}  c6 {[%clk 0:15:16]} 2. Nf3 {[%clk 0:14:59]}  d5 {[%clk 0:15:16]} 3. d3 {[%clk 0:14:59]}  dxe4 {[%clk 0:15:16]} 4. dxe4 {[%clk 0:14:59]}  Qxd1+ {[%clk 0:15:16]} 5. Kxd1 {[%clk 0:14:59]}  Nd7 {[%clk 0:15:16]} 6. Nbd2 {[%clk 0:14:59]}  g6 {[%clk 0:15:16]} 7. Ne1 {[%clk 0:14:59]}  Bg7 {[%clk 0:15:16]} 8. Nd3 {[%clk 0:14:59]}  f5 {[%clk 0:15:16]} 9. exf5 {[%clk 0:14:59]}  gxf5 {[%clk 0:15:16]} 10. Nf4 {[%clk 0:14:59]}  Ne5 {[%clk 0:15:16]} 11. Nh5 {[%clk 0:14:08]}  Bh6 {[%clk 0:14:22]} 12. Nc4 {[%clk 0:14:30]}  Ng6 {[%clk 0:15:02]} 13. Bxh6 {[%clk 0:14:47]}  Nxh6 {[%clk 0:15:02]} 14. f4 {[%clk 0:14:47]}  Kf7 {[%clk 0:15:10]} 15. Bd3 {[%clk 0:15:00]}  Be6 {[%clk 0:15:10]} 16. Ne3 {[%clk 0:15:00]}  Rad8 {[%clk 0:15:10]} 17. Ke2 {[%clk 0:15:00]}  Rd4 {[%clk 0:15:10]} 18. Rhf1 {[%clk 0:14:48]}  Rhd8 {[%clk 0:14:55]} 19. g4 {[%clk 0:14:48]}  Nh4 {[%clk 0:14:55]} 20. g5 {[%clk 0:14:48]}  Ng4 {[%clk 0:14:55]} 21. Nxg4 {[%clk 0:12:48]}  fxg4 {[%clk 0:14:54]} 22. Ng3 {[%clk 0:09:57]}  Bc4 {[%clk 0:14:54]} 23. Rad1 {[%clk 0:09:57]}  Bxd3+ {[%clk 0:14:38]} 24. Rxd3 {[%clk 0:08:50]}  Rxd3 {[%clk 0:14:38]} 25. cxd3 {[%clk 0:08:50]}  Kg6 {[%clk 0:14:38]} 26. Ke3 {[%clk 0:09:19]}  Rd5 {[%clk 0:13:31]} 27. Rg1 {[%clk 0:07:54]}  Ra5 {[%clk 0:13:22]} 28. a3 {[%clk 0:06:56]}  Rb5 {[%clk 0:13:22]} 29. b4 {[%clk 0:07:28]}  a5 {[%clk 0:11:19]} 30. bxa5 {[%clk 0:07:28]}  Rxa5 {[%clk 0:15:10]} 31. Rb1 {[%clk 0:12:08]}  e5 {[%clk 0:15:10]} 32. fxe5 {[%clk 0:12:08]}  Rxe5+ {[%clk 0:15:10]} 33. Kf4 {[%clk 0:12:08]}  Rxg5 {[%clk 0:15:10]} 34. Ne4 {[%clk 0:12:08]}  Rf5+ {[%clk 0:15:10]} 35. Kxg4 {[%clk 0:12:08]}  Nf3 {[%clk 0:15:10]} 36. Rxb7 {[%clk 0:12:08]}  Ne5+ {[%clk 0:15:10]} 37. Kg3 {[%clk 0:12:08]}  Rf3+ {[%clk 0:15:10]} 38. Kg2 {[%clk 0:12:08]}  Rxd3 {[%clk 0:15:10]} 39. a4 {[%clk 0:12:08]}  Rd4 {[%clk 0:15:10]} 40. Nc5 {[%clk 0:12:08]}  Rc4 {[%clk 0:15:10]} 41. Nd7 {[%clk 0:12:08]}  Nxd7 {[%clk 0:15:10]} 42. Rxd7 {[%clk 0:12:08]}  Rxa4 {[%clk 0:15:10]} 1/2-1/2


[Site "http://www.Chess.com"]

[Event "FIDE World Rapid Chess Championship 2021"]
[White "Piorun, Kacper"]
[Black "Suleymanli, Aydin"]
[WhiteFideId "1130420"]
[BlackFideId "13413937"]
[WhiteElo "2547"]
[BlackElo "2202"]
[Result "1-0"]
[Round "03"]
[TimeControl "900+10"]
[Date "2021.12.26"]
[WhiteClock "0:01:19"]
[BlackClock "0:01:18"]

1. d4 {[%clk 0:15:24]}  Nf6 {[%clk 0:15:18]} 2. Nf3 {[%clk 0:15:24]}  e6 {[%clk 0:15:18]} 3. e3 {[%clk 0:15:24]}  b6 {[%clk 0:15:38]} 4. Bd3 {[%clk 0:15:49]}  Bb7 {[%clk 0:15:38]} 5. O-O {[%clk 0:15:49]}  c5 {[%clk 0:15:38]} 6. c4 {[%clk 0:15:49]}  Be7 {[%clk 0:15:38]} 7. Nc3 {[%clk 0:15:49]}  cxd4 {[%clk 0:15:38]} 8. exd4 {[%clk 0:15:49]}  d6 {[%clk 0:15:38]} 9. d5 {[%clk 0:15:56]}  e5 {[%clk 0:15:09]} 10. Nh4 {[%clk 0:14:42]}  g6 {[%clk 0:15:09]} 11. Bh6 {[%clk 0:13:19]}  Nbd7 {[%clk 0:14:00]} 12. g3 {[%clk 0:11:42]}  Bf8 {[%clk 0:13:21]} 13. Bxf8 {[%clk 0:11:41]}  Kxf8 {[%clk 0:13:10]} 14. Qd2 {[%clk 0:11:41]}  h6 {[%clk 0:13:17]} 15. f4 {[%clk 0:10:04]}  Kg7 {[%clk 0:11:01]} 16. Qc2 {[%clk 0:08:41]}  exf4 {[%clk 0:11:06]} 17. Bxg6 {[%clk 0:07:24]}  fxg3 {[%clk 0:11:06]} 18. Bxf7 {[%clk 0:06:54]}  Ne5 {[%clk 0:08:30]} 19. hxg3 {[%clk 0:05:25]}  Rf8 {[%clk 0:06:09]} 20. Rae1 {[%clk 0:04:59]}  Nfg4 {[%clk 0:05:32]} 21. Be6 {[%clk 0:03:18]}  Qg5 {[%clk 0:05:32]} 22. Nf5+ {[%clk 0:02:45]}  Kh8 {[%clk 0:04:48]} 23. Ne4 {[%clk 0:02:21]}  Qg6 {[%clk 0:04:48]} 24. Nexd6 {[%clk 0:02:21]}  Ba6 {[%clk 0:04:48]} 25. Rxe5 {[%clk 0:02:21]}  Rad8 {[%clk 0:03:07]} 26. Qc3 {[%clk 0:01:19]}  Nxe5 {[%clk 0:01:46]} 27. Qxe5+ {[%clk 0:01:19]}  Kh7 {[%clk 0:01:46]} 28. Rf4 {[%clk 0:01:19]}  Rf6 {[%clk 0:01:18]} 29. Ne4 {[%clk 0:01:19]}  Rff8 {[%clk 0:01:18]} 30. Rh4 {[%clk 0:01:19]} 1-0


[Site "http://www.Chess.com"]

[Event "FIDE World Rapid Chess Championship 2021"]
[White "Demidov, Mikhail"]
[Black "Mitrabha, Guha"]
[WhiteFideId "4197143"]
[BlackFideId "5057000"]
[WhiteElo "2544"]
[BlackElo "2107"]
[Result "1-0"]
[Round "03"]
[TimeControl "900+10"]
[Date "2021.12.26"]
[WhiteClock "0:01:20"]
[BlackClock "0:00:45"]

1. e4 {[%clk 0:15:35]}  c5 {[%clk 0:15:28]} 2. Nf3 {[%clk 0:15:35]}  d6 {[%clk 0:15:28]} 3. Bb5+ {[%clk 0:15:35]}  Nd7 {[%clk 0:15:28]} 4. Ba4 {[%clk 0:15:35]}  Nf6 {[%clk 0:15:28]} 5. O-O {[%clk 0:15:35]}  e6 {[%clk 0:15:28]} 6. Re1 {[%clk 0:15:51]}  a6 {[%clk 0:15:43]} 7. c4 {[%clk 0:15:51]}  Be7 {[%clk 0:15:43]} 8. Nc3 {[%clk 0:15:51]}  O-O {[%clk 0:15:43]} 9. d3 {[%clk 0:15:51]}  Qc7 {[%clk 0:15:43]} 10. Bf4 {[%clk 0:15:32]}  b6 {[%clk 0:15:13]} 11. h3 {[%clk 0:14:38]}  Bb7 {[%clk 0:14:07]} 12. a3 {[%clk 0:14:38]}  Ne5 {[%clk 0:14:07]} 13. Nxe5 {[%clk 0:13:36]}  dxe5 {[%clk 0:14:06]} 14. Bg3 {[%clk 0:13:36]}  Rad8 {[%clk 0:14:06]} 15. Qf3 {[%clk 0:13:36]}  Nd7 {[%clk 0:14:06]} 16. Qh5 {[%clk 0:13:02]}  f6 {[%clk 0:13:52]} 17. Rad1 {[%clk 0:12:07]}  Nb8 {[%clk 0:13:40]} 18. Qg4 {[%clk 0:10:02]}  Qc8 {[%clk 0:13:40]} 19. f4 {[%clk 0:10:02]}  exf4 {[%clk 0:13:40]} 20. Bxf4 {[%clk 0:10:02]}  Nc6 {[%clk 0:13:40]} 21. Ne2 {[%clk 0:09:32]}  Kh8 {[%clk 0:12:36]} 22. Rf1 {[%clk 0:06:15]}  Na7 {[%clk 0:09:19]} 23. Be3 {[%clk 0:04:45]}  Bc6 {[%clk 0:07:16]} 24. Bc2 {[%clk 0:04:14]}  Bd7 {[%clk 0:07:16]} 25. Qg3 {[%clk 0:04:14]}  Nc6 {[%clk 0:05:08]} 26. Bf4 {[%clk 0:03:26]}  e5 {[%clk 0:05:04]} 27. Be3 {[%clk 0:03:07]}  Nd4 {[%clk 0:05:04]} 28. Rd2 {[%clk 0:03:07]}  Bc6 {[%clk 0:04:00]} 29. Nxd4 {[%clk 0:02:46]}  cxd4 {[%clk 0:04:00]} 30. Bf2 {[%clk 0:02:46]}  Bd6 {[%clk 0:04:00]} 31. Be1 {[%clk 0:02:37]}  f5 {[%clk 0:03:39]} 32. Rxf5 {[%clk 0:02:10]}  Rxf5 {[%clk 0:03:47]} 33. exf5 {[%clk 0:02:10]}  e4 {[%clk 0:03:47]} 34. Qg5 {[%clk 0:02:10]}  e3 {[%clk 0:03:40]} 35. f6 {[%clk 0:01:00]}  Rg8 {[%clk 0:03:40]} 36. Re2 {[%clk 0:01:00]}  Qe6 {[%clk 0:03:40]} 37. Bh4 {[%clk 0:01:00]}  Be5 {[%clk 0:02:48]} 38. f7 {[%clk 0:01:03]}  Rf8 {[%clk 0:02:48]} 39. Qe7 {[%clk 0:01:04]}  Qxe7 {[%clk 0:01:53]} 40. Bxe7 {[%clk 0:01:04]}  Rxf7 {[%clk 0:01:53]} 41. Bd8 {[%clk 0:01:04]}  b5 {[%clk 0:01:53]} 42. Bb3 {[%clk 0:01:04]}  Rd7 {[%clk 0:01:53]} 43. Bh4 {[%clk 0:01:04]}  h6 {[%clk 0:01:53]} 44. c5 {[%clk 0:01:04]}  Rc7 {[%clk 0:01:53]} 45. Be6 {[%clk 0:01:14]}  Be8 {[%clk 0:01:58]} 46. Rc2 {[%clk 0:01:14]}  g5 {[%clk 0:01:59]} 47. Be1 {[%clk 0:00:34]}  Bg6 {[%clk 0:01:59]} 48. c6 {[%clk 0:00:34]}  Bxd3 {[%clk 0:00:36]} 49. Rc5 {[%clk 0:00:55]}  Bd6 {[%clk 0:00:36]} 50. Ba5 {[%clk 0:00:55]}  Bxc5 {[%clk 0:00:36]} 51. Bxc7 {[%clk 0:00:55]}  Be4 {[%clk 0:00:36]} 52. Be5+ {[%clk 0:01:17]}  Kh7 {[%clk 0:00:42]} 53. c7 {[%clk 0:01:17]}  Bb7 {[%clk 0:00:42]} 54. Bf5+ {[%clk 0:01:17]}  Kg8 {[%clk 0:00:42]} 55. Kf1 {[%clk 0:01:17]}  d3 {[%clk 0:00:42]} 56. Bxd3 {[%clk 0:01:17]}  Bc8 {[%clk 0:00:42]} 57. g4 {[%clk 0:01:17]}  b4 {[%clk 0:00:20]} 58. axb4 {[%clk 0:00:54]}  Bxb4 {[%clk 0:00:20]} 59. Bf5 {[%clk 0:00:54]}  Bb7 {[%clk 0:00:20]} 60. c8=Q+ {[%clk 0:00:54]}  Bxc8 {[%clk 0:00:20]} 61. Bxc8 {[%clk 0:00:54]}  a5 {[%clk 0:00:20]} 62. b3 {[%clk 0:00:54]}  Kf7 {[%clk 0:00:20]} 63. Ke2 {[%clk 0:00:54]}  Bd2 {[%clk 0:00:45]} 64. Bd4 {[%clk 0:01:20]}  Kg6 {[%clk 0:00:45]} 65. Bf5+ {[%clk 0:01:20]}  Kf7 {[%clk 0:00:45]} 66. Bxe3 {[%clk 0:01:20]}  Bc3 {[%clk 0:00:45]} 67. Kd3 {[%clk 0:01:20]} 1-0


[Site "http://www.Chess.com"]